bitfinex/quotes_SOLUSD_20250722
["timestamp","ask_amount","ask_price","bid_price","bid_amount"]
[1753149426805,0.72,201.78,201.69,4.95810402]
[1753149427040,0.72,201.78,201.73,7.36785064]
[1753149427340,0.72,201.77,201.74,7.36785064]
[1753149427702,37.98,201.76,201.75,7.36785064]
[1753149427909,0.72,201.79,201.75,7.36785064]
[1753149428140,37.98,201.78,201.77,7.36785064]
[1753149428508,0.7,201.82,201.78,4.95589255]
[1753149428713,37.98,201.81,201.8,7.36785064]
[1753149428989,37.98,201.81,201.78,4.95589255]
[1753149429226,37.98,201.81,201.8,7.36785064]
[1753149429410,14.4028225,201.84,201.8,7.36785064]
[1753149429411,37.98,201.82,201.8,7.36785064]
[1753149429618,14.4028225,201.84,201.81,7.36785064]
[1753149429821,52.3828225,201.84,201.83,7.36785064]
[1753149430119,52.3828225,201.84,201.78,18.02562394]
[1753149430316,0.7,201.83,201.78,7.36785064]
[1753149430502,14.4028225,201.84,201.82,7.36785064]
[1753149430705,14.4028225,201.84,201.83,7.36785064]
[1753149432505,14.4028225,201.84,201.83,13.00251545]
[1753149432925,14.4028225,201.84,201.83,12.32251545]
[1753149433238,11.14405064,201.93,201.83,12.32251545]
[1753149433239,37.98,201.88,201.83,18.02132685]
[1753149433544,37.98,201.89,201.83,17.34132685]
[1753149433750,37.98,201.89,201.87,7.36785064]
[1753149433957,0.06,201.84,201.82,4.95489449]
[1753149434128,0.06,201.84,201.83,7.36785064]
[1753149435349,0.06,201.84,201.83,8.04785064]
[1753149436157,0.06,201.84,201.83,13.00251545]
[1753149436450,0.06,201.84,201.83,12.32251545]
[1753149439249,0.06,201.84,201.8,4.95540138]
[1753149439450,0.76,201.84,201.83,7.36785064]
[1753149439632,0.76,201.84,201.8,4.95540138]
[1753149439834,0.76,201.84,201.83,7.36785064]
[1753149440029,0.76,201.84,201.82,7.36785064]
[1753149440239,0.7,201.83,201.82,7.36785064]
[1753149440633,0.06,201.84,201.82,7.36785064]
[1753149440932,0.06,201.84,201.83,7.36785064]
[1753149441441,0.06,201.84,201.83,8.04785064]
[1753149441644,3.7762,201.93,201.83,25.38917749]
[1753149441957,37.94,201.92,201.84,0.68]
[1753149443248,37.94,201.92,201.91,7.36785064]
[1753149443855,37.94,201.92,201.91,12.32055233]
[1753149444057,38.64,201.92,201.91,12.32055233]
[1753149444356,26.0,201.98,201.91,4.95270169]
[1753149444357,0.7,201.96,201.91,4.95270169]
[1753149444550,0.7,201.96,201.91,12.32055233]
[1753149444851,0.7,201.95,201.93,7.36785064]
[1753149445047,37.94,201.96,201.92,7.36785064]
[1753149445243,37.94,201.96,201.93,7.36785064]
[1753149445448,37.94,201.96,201.95,7.36785064]
[1753149445634,37.92,201.96,201.95,7.36785064]
[1753149446049,1.0,202.0,201.95,12.99957136]
[1753149446239,1.0,202.0,201.99,7.36785064]
[1753149446555,1.7,202.0,201.94,4.95194531]
[1753149446754,0.7,201.99,201.97,7.36785064]
[1753149447643,0.7,201.98,201.91,26.0]
[1753149447849,37.92,201.97,201.95,7.36785064]
[1753149448160,37.92,201.97,201.94,7.36785064]
[1753149448335,0.7,201.96,201.94,7.36785064]
[1753149448652,37.92,201.97,201.92,4.9524303]
[1753149448957,37.92,201.97,201.95,7.36785064]
[1753149449159,0.7,201.98,201.95,7.36785064]
[1753149449539,0.7,201.98,201.92,4.9524303]
[1753149449540,37.9,201.97,201.92,4.9524303]
[1753149449742,37.9,201.97,201.95,7.36785064]
[1753149450455,37.9,201.96,201.92,4.9524544]
[1753149450653,37.9,201.96,201.95,7.36785064]
[1753149451041,1.0,202.0,201.95,7.36785064]
[1753149451042,1.0,202.0,201.95,8.04785064]
[1753149451244,37.9,201.99,201.92,17.33359544]
[1753149451430,37.9,201.99,201.96,0.68]
[1753149451958,37.9,201.99,201.97,4.95123038]
[1753149452127,37.9,201.99,201.92,12.38114104]
[1753149452128,37.9,201.99,201.93,4.95221116]
[1753149452329,37.9,201.99,201.97,7.36785064]
[1753149452549,38.6,201.99,201.97,7.36785064]
[1753149452752,38.6,201.99,201.93,4.95221116]
[1753149452753,0.7,201.98,201.93,7.36785064]
[1753149452958,0.7,201.97,201.93,7.36785064]
[1753149453154,0.7,201.96,201.86,0.68]
[1753149453458,43.5508061,201.99,201.94,7.36785064]
[1753149453635,0.7,201.98,201.93,7.36785064]
[1753149453833,37.88,201.97,201.94,7.36785064]
[1753149454054,0.7,201.96,201.93,7.36785064]
[1753149454256,0.7,201.95,201.93,7.36785064]
[1753149454952,0.7,201.95,201.92,7.36785064]
[1753149455153,1.0,202.0,201.94,7.36785064]
[1753149455360,38.58,201.99,201.93,7.36785064]
[1753149455553,8.06785064,201.98,201.92,7.36785064]
[1753149455755,0.7,201.97,201.92,7.36785064]
[1753149455949,5.65147553,201.96,201.91,7.36785064]
[1753149456148,0.7,201.95,201.91,7.36785064]
[1753149456344,37.88,201.94,201.91,7.36785064]
[1753149456745,0.7,201.97,201.93,7.36785064]
[1753149456952,37.88,201.96,201.93,7.36785064]
[1753149457150,38.58,201.96,201.93,7.36785064]
[1753149457464,0.7,201.95,201.92,7.36785064]
[1753149458376,0.71,201.94,201.92,7.36785064]
[1753149458552,37.88,201.96,201.92,7.36785064]
[1753149459015,38.59,201.96,201.93,7.36785064]
[1753149459285,38.59,201.96,201.92,7.36785064]
[1753149459570,0.71,201.96,201.92,7.36785064]
[1753149459744,37.86,201.95,201.92,7.36785064]
[1753149460253,0.71,201.94,201.9,7.36785064]
[1753149460551,0.71,201.94,201.91,7.36785064]
[1753149460755,0.71,201.94,201.92,7.36785064]
[1753149460971,37.86,201.95,201.92,7.36785064]
[1753149461167,38.57,201.95,201.92,7.36785064]
[1753149461662,37.86,201.95,201.92,7.36785064]
[1753149461848,37.86,201.95,201.93,7.36785064]
[1753149462049,0.71,201.98,201.94,7.36785064]
[1753149462545,1.77,202.0,201.95,7.36785064]
[1753149462776,37.84,201.99,201.96,7.36785064]
[1753149462957,1.77,202.0,201.96,7.36785064]
[1753149463158,1.77,202.0,201.92,4.95245641]
[1753149463159,38.55,201.99,201.94,7.36785064]
[1753149463467,0.71,201.98,201.92,4.95245641]
[1753149463669,37.84,201.97,201.96,7.36785064]
[1753149464574,37.84,201.97,201.96,12.31932617]
[1753149464962,1.06,202.0,201.96,13.02932617]
[1753149465163,37.84,201.97,201.95,7.36785064]
[1753149465976,37.84,201.97,201.96,7.36785064]
[1753149466176,37.84,201.97,201.94,7.36785064]
[1753149466367,38.55,201.97,201.94,7.36785064]
[1753149466686,0.71,201.96,201.94,7.36785064]
[1753149467159,1.77,202.0,201.95,7.36785064]
[1753149467357,37.82,201.99,201.93,5.66214449]
[1753149467579,37.82,201.99,201.97,7.36785064]
[1753149467768,37.82,201.99,201.93,5.66214449]
[1753149467970,37.82,201.99,201.96,7.36785064]
[1753149468659,37.82,201.99,201.96,12.31932383]
[1753149469060,38.53,201.99,201.96,12.31932383]
[1753149469284,38.53,201.99,201.96,4.95147319]
[1753149469484,38.53,201.99,201.95,7.36785064]
[1753149469781,38.53,201.98,201.95,7.36785064]
[1753149470166,37.82,201.97,201.95,7.36785064]
[1753149470691,37.82,201.97,201.9,5.662947]
[1753149470867,38.53,201.97,201.93,7.36785064]
[1753149471265,0.71,201.97,201.93,7.36785064]
[1753149471460,1.06,202.0,201.96,7.36785064]
[1753149471672,38.51,201.99,201.9,17.3353145]
[1753149471867,38.51,201.99,201.94,7.36785064]
[1753149472092,0.71,201.98,201.93,7.36785064]
[1753149472463,0.71,201.97,201.93,7.36785064]
[1753149472662,0.71,201.96,201.9,4.952947]
[1753149472877,37.8,201.95,201.92,7.36785064]
[1753149473072,38.51,201.95,201.9,4.952947]
[1753149473379,37.8,201.95,201.93,7.36785064]
[1753149473873,37.8,201.95,201.94,7.36785064]
[1753149474259,37.8,201.95,201.94,8.07785064]
[1753149474962,37.78,201.97,201.95,4.95172072]
[1753149475162,1.06,202.0,201.96,7.36785064]
[1753149475473,1.06,202.0,201.95,4.95172072]
[1753149475474,38.84,202.0,201.99,7.36785064]
[1753149476361,38.84,202.0,201.95,18.04102252]
[1753149476362,38.84,202.0,201.98,7.36785064]
[1753149477070,39.55,202.0,201.93,4.95221116]
[1753149477380,37.78,201.99,201.98,7.36785064]
[1753149478376,37.78,201.99,201.97,7.36785064]
[1753149479697,37.78,201.99,201.96,4.95135197]
[1753149480269,37.78,201.99,201.94,4.95196593]
[1753149480975,1.06,202.0,201.98,7.36785064]
[1753149481188,0.71,201.99,201.96,7.36785064]
[1753149481969,0.71,201.99,201.93,29.71326697]
[1753149482175,1.06,202.0,201.98,7.36785064]
[1753149482370,1.06,202.0,201.99,7.36785064]
[1753149482590,1.06,202.0,201.99,8.07785064]
[1753149482890,1.06,202.0,201.99,7.36785064]
[1753149483268,1.77,202.0,201.96,7.36785064]
[1753149483593,38.45,201.99,201.96,7.36785064]
[1753149483902,0.71,201.98,201.95,7.36785064]
[1753149484188,0.71,201.97,201.96,7.36785064]
[1753149484377,37.74,201.99,201.96,7.36785064]
[1753149484577,37.74,201.99,201.98,7.36785064]
[1753149485174,38.8,202.0,201.98,12.31866279]
[1753149485484,38.8,202.0,201.99,7.36785064]
[1753149485679,1.06,202.0,201.95,4.95155216]
[1753149485891,38.8,202.0,201.95,4.95155216]
[1753149486195,38.8,202.0,201.99,7.36785064]
[1753149486409,39.51,202.0,201.98,7.36785064]
[1753149486582,0.71,201.99,201.97,7.36785064]
[1753149487180,0.71,201.99,201.98,7.36785064]
[1753149487377,38.43,201.99,201.98,7.36785064]
[1753149487583,37.72,201.99,201.92,0.71]
[1753149488193,0.71,201.98,201.96,7.36785064]
[1753149488382,37.72,201.99,201.96,7.36785064]
[1753149488579,0.71,201.97,201.96,7.36785064]
[1753149488794,0.71,201.97,201.95,7.36785064]
[1753149489090,0.71,201.96,201.89,0.67]
[1753149489278,37.72,201.95,201.89,4.95314722]
[1753149489478,37.72,201.95,201.92,7.36785064]
[1753149489676,38.43,201.95,201.93,7.36785064]
[1753149490088,37.72,201.95,201.93,7.36785064]
[1753149490695,38.43,201.95,201.93,7.36785064]
[1753149491400,38.43,201.95,201.89,4.95314722]
[1753149491602,38.43,201.95,201.93,7.36785064]
[1753149492096,37.72,201.95,201.93,7.36785064]
[1753149492296,0.71,201.94,201.93,7.36785064]
[1753149492596,0.71,201.94,201.89,4.95314722]
[1753149492997,37.72,201.95,201.93,7.36785064]
[1753149493199,37.72,201.95,201.94,4.41210208]
[1753149493383,37.7,201.95,201.94,4.41210208]
[1753149494193,37.7,201.95,201.93,4.95204685]
[1753149494515,8.5919,202.0,201.93,4.95204685]
[1753149494516,1.77,202.0,201.94,4.41210208]
[1753149494691,1.06,202.0,201.99,4.41210208]
[1753149495091,38.74,202.0,201.99,4.41210208]
[1753149496308,1.06,202.0,201.99,4.41210208]
[1753149496682,1.06,202.0,201.99,9.36284221]
[1753149497092,1.06,202.0,201.99,4.41210208]
[1753149497306,1.06,202.0,201.99,8.01872824]
[1753149498317,1.06,202.0,201.99,12.96946837]
[1753149498486,1.06,202.0,201.99,12.29946837]
[1753149498682,37.68,202.06,201.99,12.29946837]
[1753149498683,4.6617,202.14,202.02,26.0]
[1753149498886,7.987,202.16,202.02,26.0]
[1753149498887,7.987,202.16,202.12,7.34872824]
[1753149499105,7.34872824,202.13,202.06,7.34872824]
[1753149499290,7.34872824,202.13,201.99,17.32759046]
[1753149499291,15.36496806,202.16,202.09,7.34872824]
[1753149499479,37.66,202.15,202.13,7.34872824]
[1753149499679,0.71,202.17,202.1,0.67]
[1753149499991,3.9517,202.19,202.1,0.67]
[1753149499992,41.6117,202.19,202.16,7.34872824]
[1753149500308,37.66,202.19,202.16,7.34872824]
[1753149500499,37.66,202.19,202.12,0.67]
[1753149500500,0.71,202.18,202.12,0.67]
[1753149500807,0.71,202.18,202.15,7.34872824]
[1753149500985,0.71,202.18,202.16,7.34872824]
[1753149501191,38.37,202.18,202.17,7.34872824]
[1753149501394,0.81,202.21,202.17,7.34872824]
[1753149501710,38.35,202.2,202.17,7.34872824]
[1753149502085,38.35,202.2,202.18,7.34872824]
[1753149502301,0.1,202.21,202.15,0.67]
[1753149502501,0.1,202.21,202.2,7.34872824]
[1753149504104,0.1,202.21,202.2,8.01872824]
[1753149504288,0.1,202.21,202.2,12.96432665]
[1753149504607,0.1,202.21,202.2,20.31305489]
[1753149504794,0.71,202.27,202.25,7.34872824]
[1753149504795,37.62,202.27,202.25,7.34872824]
[1753149504985,37.62,202.27,202.26,7.34872824]
[1753149505182,39.3427,202.34,202.26,7.34872824]
[1753149505389,38.33,202.33,202.25,0.67]
[1753149505623,38.33,202.33,202.31,7.34872824]
[1753149505909,37.62,202.33,202.32,7.34872824]
[1753149506120,37.62,202.33,202.25,0.67]
[1753149506121,38.33,202.33,202.25,0.67]
[1753149506288,38.33,202.33,202.32,7.34872824]
[1753149506702,43.27254343,202.33,202.15,3.7986]
[1753149506902,0.71,202.32,202.28,7.34872824]
[1753149507213,0.71,202.31,202.28,7.34872824]
[1753149507410,0.71,202.3,202.28,7.34872824]
[1753149507618,0.71,202.29,202.28,7.34872824]
[1753149507805,0.71,202.29,202.2,8.01872824]
[1753149507806,0.71,202.29,202.27,7.34872824]
[1753149508016,45.1607,202.28,202.23,7.34872824]
[1753149508319,4.94413131,202.26,202.17,5.6162755]
[1753149508618,0.71,202.25,202.17,5.6162755]
[1753149508917,0.71,202.25,202.24,7.34872824]
[1753149509127,38.29,202.25,202.24,7.34872824]
[1753149509613,38.29,202.25,202.17,5.6162755]
[1753149509823,38.29,202.25,202.24,7.34872824]
[1753149510001,38.29,202.25,202.17,5.6162755]
[1753149510197,43.23437577,202.25,202.24,7.34872824]
[1753149510423,43.23437577,202.25,202.23,7.34872824]
[1753149510597,42.52437577,202.25,202.23,7.34872824]
[1753149510800,0.71,202.24,202.23,7.34872824]
[1753149511021,0.71,202.24,202.22,7.34872824]
[1753149511228,42.52437577,202.25,202.22,7.34872824]
[1753149511396,0.71,202.23,202.15,4.94682166]
[1753149511594,0.71,202.23,202.21,7.34872824]
[1753149511801,42.52437577,202.25,202.21,7.34872824]
[1753149512005,0.71,202.22,202.21,7.34872824]
[1753149512498,37.58,202.25,202.21,7.34872824]
[1753149512499,37.56,202.23,202.21,7.34872824]
[1753149512708,37.56,202.23,202.22,7.34872824]
[1753149513012,4.4669,202.29,202.22,7.34872824]
[1753149513335,37.56,202.28,202.27,7.34872824]
[1753149513535,19.70418201,202.34,202.27,7.34872824]
[1753149513536,0.71,202.35,202.27,8.01872824]
[1753149513826,37.56,202.33,202.27,0.67]
[1753149514016,0.71,202.32,202.23,0.67]
[1753149514321,0.71,202.32,202.24,4.94462025]
[1753149514912,0.71,202.32,202.31,7.34872824]
[1753149515232,0.71,202.32,202.24,4.94462025]
[1753149515436,0.71,202.32,202.31,7.34872824]
[1753149515743,37.56,202.33,202.31,7.34872824]
[1753149516052,5.65144388,202.37,202.32,7.34872824]
[1753149516213,5.65144388,202.37,202.24,43.30617088]
[1753149516214,37.54,202.33,202.24,43.30617088]
[1753149516417,0.71,202.32,202.24,4.94462025]
[1753149516635,37.54,202.32,202.31,7.34872824]
[1753149517543,0.06,202.41,202.31,8.01872824]
[1753149517854,0.06,202.41,202.4,7.34872824]
[1753149518337,0.06,202.41,202.4,12.9594397]
[1753149519213,0.5,202.45,202.4,25.31121835]
[1753149519419,0.5,202.45,202.44,7.34872824]
[1753149520051,0.5,202.45,202.44,8.01872824]
[1753149520248,0.5,202.45,202.42,0.67]
[1753149520439,0.5,202.45,202.4,30.94071146]
[1753149520440,0.5,202.45,202.44,7.34872824]
[1753149520640,0.5,202.45,202.38,26.0]
[1753149520844,0.5,202.45,202.44,7.34872824]
[1753149522115,0.5,202.45,202.39,0.67]
[1753149522322,0.5,202.45,202.44,7.34872824]
[1753149522931,0.5,202.45,202.39,0.67]
[1753149523138,0.66,202.44,202.32,0.67]
[1753149523439,44.7793,202.43,202.38,7.34872824]
[1753149523637,0.66,202.42,202.38,7.34872824]
[1753149523838,0.66,202.41,202.38,7.34872824]
[1753149524042,0.66,202.4,202.38,7.34872824]
[1753149524421,4.94095558,202.39,202.38,7.34872824]
[1753149524621,0.66,202.39,202.38,7.34872824]
[1753149525235,0.66,202.39,202.36,7.34872824]
[1753149525639,0.66,202.38,202.28,0.67]
[1753149525845,37.48,202.37,202.34,7.34872824]
[1753149526041,0.66,202.36,202.23,0.67]
[1753149526233,0.66,202.36,202.35,7.34872824]
[1753149526434,0.66,202.36,202.24,4.94462025]
[1753149526435,38.14,202.36,202.29,4.94339809]
[1753149526751,43.08183428,202.36,202.34,7.34872824]
[1753149527046,3.6809,202.41,202.35,7.34872824]
[1753149527236,37.46,202.41,202.4,7.34872824]
[1753149527438,0.5,202.45,202.4,7.34872824]
[1753149527643,0.5,202.45,202.37,0.67]
[1753149527644,0.5,202.45,202.44,7.34872824]
[1753149527943,1.16,202.45,202.34,0.67]
[1753149528141,1.16,202.45,202.41,7.34872824]
[1753149528349,38.62,202.45,202.43,7.34872824]
[1753149528544,37.96,202.45,202.4,4.94063908]
[1753149528748,37.96,202.45,202.44,7.34872824]
[1753149529541,0.5,202.45,202.44,7.34872824]
[1753149530627,5.43949123,202.45,202.44,7.34872824]
[1753149530824,1.16,202.45,202.43,7.34872824]
[1753149531024,1.16,202.45,202.39,4.94092339]
[1753149531227,0.5,202.45,202.44,7.34872824]
[1753149532548,0.5,202.45,202.44,12.95846347]
[1753149532752,0.5,202.45,202.44,12.28846347]
[1753149532953,0.5,202.45,202.41,0.67]
[1753149533137,0.5,202.45,202.44,7.34872824]
[1753149534066,0.5,202.45,202.44,8.01872824]
[1753149534435,0.5,202.45,202.44,7.34872824]
[1753149535036,0.5,202.45,202.44,12.28846347]
[1753149535347,0.5,202.45,202.44,7.34872824]
[1753149535734,5.43951666,202.45,202.43,7.34872824]
[1753149535939,6.09951666,202.45,202.43,7.34872824]
[1753149536237,1.16,202.45,202.43,7.34872824]
[1753149536444,0.5,202.45,202.44,7.34872824]
[1753149536847,0.5,202.45,202.44,12.28846347]
[1753149537045,0.5,202.45,202.4,0.67]
[1753149537247,0.5,202.45,202.44,7.34872824]
[1753149537641,1.16,202.45,202.44,7.34872824]
[1753149537948,0.5,202.45,202.44,7.34872824]
[1753149538637,0.5,202.45,202.44,12.95846347]
[1753149540373,0.5,202.45,202.42,4.94022329]
[1753149540549,0.5,202.45,202.44,7.34872824]
[1753149540736,38.56,202.45,202.36,0.67]
[1753149540935,0.66,202.44,202.33,2.16707475]
[1753149541162,8.00872824,202.44,202.38,7.34872824]
[1753149541360,0.66,202.43,202.39,7.34872824]
[1753149541589,0.66,202.42,202.41,7.34872824]
[1753149541868,1.16,202.45,202.41,7.34872824]
[1753149542155,38.54,202.45,202.36,0.67]
[1753149542355,37.38,202.44,202.33,27.49707475]
[1753149542565,0.66,202.43,202.35,0.03]
[1753149542743,8.2442,202.43,202.39,7.34872824]
[1753149542943,7.5842,202.43,202.39,7.34872824]
[1753149543147,0.66,202.42,202.37,7.34872824]
[1753149543346,0.66,202.42,202.35,0.03]
[1753149543541,7.34872824,202.41,202.35,0.03]
[1753149543742,0.66,202.4,202.35,0.03]
[1753149543943,16.78468397,202.38,202.33,1.49707475]
[1753149544270,4.94193229,202.35,202.31,7.34872824]
[1753149544449,0.66,202.34,202.31,7.34872824]
[1753149544782,4.5366,202.33,202.27,7.34872824]
[1753149545081,32.64311221,202.32,202.26,7.37872824]
[1753149545247,38.04,202.31,202.26,7.37872824]
[1753149545454,17.44468397,202.3,202.26,0.03]
[1753149545687,24.79341221,202.3,202.26,0.03]
[1753149545972,16.78468397,202.28,202.26,0.03]
[1753149546354,5.60388688,202.27,202.26,0.03]
[1753149546780,16.78468397,202.26,202.16,0.03]
[1753149546954,54.16468397,202.25,202.2,7.34872824]
[1753149547271,7.34872824,202.23,202.16,0.03]
[1753149547478,7.34872824,202.23,202.16,7.37872824]
[1753149547778,7.34872824,202.2,202.16,0.03]
[1753149548074,37.38,202.19,202.16,0.03]
[1753149548277,12.29506053,202.17,202.16,0.03]
[1753149548466,16.78468397,202.12,202.05,7.34872824]
[1753149548777,16.78468397,202.12,202.04,7.34872824]
[1753149548778,38.05,202.11,202.04,7.34872824]
[1753149548963,24.80341221,202.1,202.0,0.2]
[1753149549164,24.80341221,202.1,202.03,7.34872824]
[1753149549470,8.01872824,202.09,202.02,7.34872824]
[1753149549664,16.78468397,202.1,202.0,0.2]
[1753149549665,0.67,202.08,202.0,0.2]
[1753149549847,37.36,202.07,202.0,5.15043248]
[1753149550171,37.36,202.08,202.06,7.34872824]
[1753149550352,37.36,202.1,202.07,7.34872824]
[1753149550553,0.67,202.09,202.01,0.68]
[1753149550754,37.36,202.1,202.08,7.34872824]
[1753149550960,37.36,202.1,202.09,7.34872824]
[1753149551555,37.36,202.1,202.08,7.34872824]
[1753149551971,37.36,202.1,202.09,7.34872824]
[1753149552153,37.36,202.1,202.01,17.32568085]
[1753149552356,37.36,202.1,202.09,7.34872824]
[1753149552678,37.38,202.14,202.09,7.34872824]
[1753149552970,38.05,202.14,202.05,8.02872824]
[1753149553178,38.05,202.14,202.12,7.34872824]
[1753149553550,37.38,202.14,202.13,7.34872824]
[1753149553747,37.38,202.14,202.12,7.34872824]
[1753149553950,37.38,202.14,202.13,7.34872824]
[1753149554369,42.99709798,202.14,202.09,7.34872824]
[1753149554575,8.01872824,202.13,202.06,7.34872824]
[1753149554759,0.67,202.12,202.06,7.34872824]
[1753149555474,0.67,202.12,202.07,7.34872824]
[1753149555667,0.67,202.11,202.0,0.2]
[1753149555857,37.38,202.1,202.07,7.34872824]
[1753149556053,0.67,202.09,202.05,7.34872824]
[1753149556272,0.67,202.08,202.05,7.34872824]
[1753149556600,0.67,202.07,202.05,7.34872824]
[1753149556784,37.38,202.1,202.06,7.34872824]
[1753149556953,38.05,202.1,202.0,5.83035228]
[1753149557281,0.67,202.09,202.04,7.34872824]
[1753149557573,0.67,202.08,202.04,7.34872824]
[1753149557775,42.32812616,202.1,202.05,7.34872824]
[1753149558076,0.67,202.07,202.03,7.34872824]
[1753149558256,49.6768544,202.1,202.03,7.34872824]
[1753149558577,0.67,202.06,202.03,7.34872824]
[1753149558775,37.38,202.05,202.04,7.34872824]
[1753149558972,37.38,202.05,202.03,7.34872824]
[1753149559777,37.38,202.05,202.04,7.34872824]
[1753149561481,37.38,202.05,202.0,0.2]
[1753149561679,0.67,202.04,202.0,0.2]
[1753149561857,0.67,202.03,202.0,0.2]
[1753149562054,8.4372,202.03,202.0,0.2]
[1753149562277,0.67,202.02,202.0,0.2]
[1753149562582,0.67,202.01,202.0,0.2]
[1753149563275,38.03,202.01,202.0,0.2]
[1753149563775,37.36,202.01,202.0,0.2]
[1753149564159,38.03,202.01,202.0,0.2]
[1753149564764,62.16341221,202.01,202.0,0.2]
[1753149564965,62.16341221,202.01,201.99,0.03]
[1753149564966,16.78468397,202.0,201.99,0.03]
[1753149565178,24.80341221,202.0,201.99,0.03]
[1753149565561,21.71028957,202.0,201.99,0.03]
[1753149565770,29.05901781,202.0,201.99,0.03]
[1753149566266,46.38575047,202.0,201.84,0.03]
[1753149566479,46.38575047,202.0,201.87,7.34872824]
[1753149566480,7.34872824,201.94,201.87,7.34872824]
[1753149566681,38.03,201.93,201.87,7.34872824]
[1753149566865,40.49088639,201.93,201.87,7.34872824]
[1753149567059,40.49088639,201.93,201.88,7.34872824]
[1753149567287,0.67,201.92,201.88,7.34872824]
[1753149567675,0.67,201.92,201.89,7.34872824]
[1753149567979,0.67,201.92,201.88,7.34872824]
[1753149568196,0.67,201.92,201.87,7.34872824]
[1753149568568,39.82088639,201.93,201.88,7.34872824]
[1753149568763,39.82088639,201.93,201.89,7.34872824]
[1753149568969,40.49088639,201.93,201.89,7.34872824]
[1753149569368,37.36,201.93,201.92,7.34872824]
[1753149569566,39.85627427,201.93,201.86,0.68]
[1753149569876,8.01872824,201.92,201.85,7.34872824]
[1753149570186,5.62256356,201.92,201.86,7.34872824]
[1753149570366,12.9712918,201.92,201.86,7.34872824]
[1753149570996,5.62256356,201.92,201.86,7.34872824]
[1753149571284,12.9712918,201.92,201.86,7.34872824]
[1753149571867,5.62256356,201.92,201.86,7.34872824]
[1753149572071,12.9712918,201.92,201.85,7.34872824]
[1753149572292,3.8029,201.9,201.84,0.03]
[1753149572599,29.97,201.84,201.83,0.03]
[1753149572890,67.33,201.84,201.83,30.03]
[1753149573087,29.97,201.84,201.83,7.37872824]
[1753149573386,29.97,201.84,201.83,13.01339305]
[1753149574704,6.99554053,201.96,201.83,25.40005509]
[1753149574874,37.36,201.95,201.94,7.34872824]
[1753149575272,0.67,202.0,201.94,7.34872824]
[1753149575595,9.83286667,202.02,201.94,7.34872824]
[1753149575596,9.83286667,202.02,201.99,7.34872824]
[1753149575803,36.29,202.03,201.94,0.68]
[1753149575804,36.29,202.03,202.01,7.34872824]
[1753149575983,37.34,202.02,201.94,0.68]
[1753149576302,37.34,202.02,202.01,7.34872824]
[1753149576602,37.34,202.02,202.01,30.0]
[1753149576892,38.01,202.02,202.01,30.0]
[1753149577091,37.34,202.02,202.01,7.34872824]
[1753149577299,0.67,202.08,202.01,0.68]
[1753149577600,37.34,202.07,202.06,7.34872824]
[1753149577799,37.34,202.07,202.05,7.34872824]
[1753149578105,38.01,202.07,202.04,7.34872824]
[1753149578475,37.34,202.07,201.97,0.71]
[1753149578801,0.69,202.06,202.01,7.34872824]
[1753149578984,0.69,202.05,201.99,7.34872824]
[1753149579380,0.69,202.05,202.01,7.34872824]
[1753149579582,0.69,202.05,201.97,30.0]
[1753149579782,0.69,202.05,202.0,7.34872824]
[1753149580070,0.69,202.04,201.96,4.95125195]
[1753149580276,37.34,202.03,201.96,4.95125195]
[1753149580598,37.34,202.03,201.98,7.34872824]
[1753149580796,0.69,202.02,201.98,7.34872824]